bitfinex/quotes_SOLUSD_20251106
["timestamp","ask_amount","ask_price","bid_price","bid_amount"]
[1762443298574,13.3323465,157.12,157.06,6.96778439]
[1762443298795,13.3323465,157.12,157.03,0.48]
[1762443298796,6.96778439,157.11,157.05,6.96778439]
[1762443299015,7.68778439,157.12,157.05,6.96778439]
[1762443299301,7.68778439,157.12,157.07,6.96778439]
[1762443299302,0.72,157.12,157.07,6.96778439]
[1762443299476,7.68778439,157.12,157.06,6.96778439]
[1762443299672,7.68778439,157.12,157.05,6.96778439]
[1762443299877,7.68778439,157.11,157.05,27.55978439]
[1762443300097,7.68778439,157.11,157.05,6.96778439]
[1762443300269,0.72,157.13,157.03,0.32514934]
[1762443300468,0.2,157.16,157.03,6.96778439]
[1762443300469,6.96778439,157.09,157.03,6.96778439]
[1762443300668,0.72,157.12,156.98,0.80517005]
[1762443300669,6.36658814,157.07,156.98,0.80517005]
[1762443300896,6.36658814,157.07,157.0,15.10778439]
[1762443300897,6.96778439,157.06,157.0,15.10778439]
[1762443301106,6.96778439,157.06,157.0,8.14]
[1762443301301,6.96778439,157.06,157.0,15.10778439]
[1762443301494,6.96778439,157.05,157.0,8.14]
[1762443301805,0.7956209,157.11,157.0,8.14]
[1762443301806,14.05389905,157.09,157.02,6.96778439]
[1762443302093,23.0005586,157.09,157.0,8.14]
[1762443302305,6.96778439,157.07,157.01,6.96778439]
[1762443302606,6.36658814,157.07,157.0,8.14]
[1762443302782,0.72,157.06,157.02,6.96778439]
[1762443303308,53.20687336,157.14,157.0,8.14]
[1762443303309,53.20687336,157.14,157.03,6.96778439]
[1762443303483,14.05194145,157.13,157.07,6.96778439]
[1762443303709,20.592,157.14,157.01,0.80515043]
[1762443303710,0.72,157.14,157.09,6.96778439]
[1762443304181,0.2,157.16,157.13,6.96778439]
[1762443304390,0.72,157.25,157.15,6.96778439]
[1762443304589,7.07931759,157.25,157.16,6.96651977]
[1762443304786,6.96778439,157.22,157.11,20.872]
[1762443304992,0.72,157.24,157.16,6.96778439]
[1762443305214,0.72,157.28,157.23,6.96778439]
[1762443305497,0.72,157.28,157.24,6.96778439]
[1762443305699,0.72,157.28,157.2,0.32334753]
[1762443305919,6.96778439,157.26,157.17,8.16]
[1762443306088,6.96778439,157.26,157.18,6.96778439]
[1762443306289,6.96778439,157.23,157.17,8.16]
[1762443306498,0.72,157.22,157.16,7.6817173]
[1762443306711,6.36091851,157.21,157.15,7.6817173]
[1762443307010,29.9449321,157.21,157.14,7.6817173]
[1762443307179,7.6817173,157.19,157.12,7.6817173]
[1762443307494,0.72,157.2,157.11,20.592]
[1762443307495,0.72,157.2,157.14,7.6817173]
[1762443307696,0.72,157.2,157.16,7.6817173]
[1762443307908,0.72,157.2,157.17,7.6817173]
[1762443308107,0.72,157.19,157.16,7.6817173]
[1762443308404,0.72,157.19,157.15,7.6817173]
[1762443308617,0.72,157.19,157.12,0.32411672]
[1762443308927,0.72,157.19,156.53,24.40303572]
[1762443308928,7.6817173,157.16,157.03,9.78882769]
[1762443309080,7.6817173,157.12,157.07,7.6817173]
[1762443309396,0.72,157.11,157.08,7.6817173]
[1762443309576,0.72,157.11,157.05,20.592]
[1762443309777,0.72,157.11,157.07,7.6817173]
[1762443310184,0.72,157.11,157.03,10.11389733]
[1762443310503,0.72,157.11,157.07,7.6817173]
[1762443310803,7.08514251,157.11,157.07,7.6817173]
[1762443310989,0.72,157.11,157.08,7.6817173]
[1762443311317,0.72,157.16,157.1,7.6817173]
[1762443311605,7.6817173,157.17,157.11,7.6817173]
[1762443311809,0.72,157.16,157.13,7.6817173]
[1762443312099,0.72,157.27,157.18,20.592]
[1762443312310,0.72,157.27,157.24,7.6817173]
[1762443312477,8.4017173,157.27,157.21,7.6817173]
[1762443312681,6.35889609,157.26,157.21,7.6817173]
[1762443312989,0.72,157.27,157.25,7.6817173]
[1762443313412,0.72,157.27,157.21,7.6817173]
[1762443313413,8.4017173,157.27,157.21,7.6817173]
[1762443313581,0.72,157.31,157.25,7.6817173]
[1762443313782,0.72,157.31,157.28,7.6817173]
[1762443313999,0.72,157.31,157.27,7.6817173]
[1762443314311,0.72,157.31,157.22,10.11185214]
[1762443314476,0.72,157.31,157.29,6.74219707]
[1762443314679,0.72,157.31,157.28,6.74219707]
[1762443314879,7.07710498,157.31,157.28,6.74219707]
[1762443315105,7.07691309,157.31,157.28,6.74219707]
[1762443315802,0.72,157.3,157.22,30.38082769]
[1762443316122,0.72,157.3,157.23,0.32332691]
[1762443316408,6.74219707,157.26,157.17,6.36220632]
[1762443316700,6.35849176,157.27,157.22,6.74219707]
[1762443316902,6.35849176,157.27,157.23,6.74219707]
[1762443317207,7.46219707,157.26,157.16,6.36294222]
[1762443317513,7.46219707,157.26,157.09,0.32387401]
[1762443317514,19.03,157.21,157.09,0.32387401]
[1762443317680,6.74219707,157.1,156.97,0.69]
[1762443317884,6.74219707,157.04,156.97,6.74219707]
[1762443318099,6.74219707,157.03,156.94,0.69]
[1762443318306,6.74219707,157.0,156.91,0.69]
[1762443318507,6.74219707,156.98,156.91,6.74219707]
[1762443318689,6.74219707,156.98,156.89,6.37389253]
[1762443318690,6.37104994,156.96,156.89,6.37389253]
[1762443319007,6.74219707,156.97,156.9,6.74219707]
[1762443319204,7.46219707,156.98,156.91,6.74219707]
[1762443319498,7.46219707,156.98,156.89,6.37389253]
[1762443319499,0.72,157.01,156.95,6.74219707]
[1762443319702,6.74219707,156.96,156.87,6.37433101]
[1762443319903,6.74219707,156.95,156.88,6.74219707]
[1762443320103,6.74219707,156.93,156.87,13.11652808]
[1762443320306,6.74219707,156.93,156.87,6.37433101]
[1762443320490,6.74219707,156.92,156.86,6.74219707]
[1762443320690,6.74219707,156.89,156.83,6.74219707]
[1762443320999,6.74219707,156.89,156.82,6.37635688]
[1762443321000,15.93092976,156.93,156.81,6.74219707]
[1762443321303,6.74219707,156.87,156.79,21.282]
[1762443321478,6.74219707,156.86,156.78,6.37836458]
[1762443321683,6.74219707,156.83,156.76,6.37880333]
[1762443321913,6.74219707,156.8,156.74,6.84219707]
[1762443322079,0.79678735,156.88,156.74,0.1]
[1762443322080,6.74219707,156.77,156.74,0.1]
[1762443322285,6.74219707,156.76,156.74,0.1]
[1762443322601,0.66,156.83,156.75,6.74219707]
[1762443322797,6.37394589,156.89,156.76,22.32712426]
[1762443323010,6.74219707,156.88,156.82,6.74219707]
[1762443323310,6.74219707,156.85,156.79,6.74219707]
[1762443323603,6.74219707,156.86,156.8,6.74219707]
[1762443323908,7.40219707,156.85,156.79,6.74219707]
[1762443324080,6.74219707,156.82,156.76,13.12137543]
[1762443324401,6.74219707,156.83,156.77,6.74219707]
[1762443324781,6.74219707,156.8,156.74,6.84219707]
[1762443324982,6.74219707,156.77,156.74,0.1]
[1762443325209,1.4570922,156.82,156.74,0.1]
[1762443325210,6.74219707,156.76,156.74,0.1]
[1762443325505,0.66,156.81,156.75,6.74219707]
[1762443325717,0.66,156.81,156.74,0.1]
[1762443325718,6.74219707,156.84,156.78,6.74219707]
[1762443325882,0.66,156.85,156.8,6.74219707]
[1762443326195,6.74219707,156.83,156.77,6.74219707]
[1762443326603,0.66,156.82,156.77,6.74219707]
[1762443326798,13.77778718,156.85,156.79,6.74219707]
[1762443327107,6.74219707,156.84,156.78,6.74219707]
[1762443327305,0.66,156.84,156.78,6.74219707]
[1762443327487,7.40219707,156.84,156.78,6.74219707]
[1762443328122,7.03499302,156.87,156.81,6.74219707]
[1762443328280,6.74219707,156.87,156.81,6.74219707]
[1762443328482,6.74219707,156.87,156.77,0.66]
[1762443328483,0.66,156.9,156.84,6.74219707]
[1762443328687,6.74219707,156.88,156.82,6.74219707]
[1762443328888,7.40219707,156.88,156.82,6.74219707]
[1762443329088,0.66,156.88,156.83,6.74219707]
[1762443329312,6.37129335,156.96,156.87,6.74219707]
[1762443329488,6.74219707,156.89,156.8,7.36491115]
[1762443329806,6.74219707,156.87,156.81,6.74219707]
[1762443329985,6.74219707,156.86,156.8,13.11974809]
[1762443330187,0.66,156.88,156.81,6.74219707]
[1762443330188,6.74219707,156.87,156.81,6.74219707]
[1762443330409,6.74219707,156.87,156.82,6.74219707]
[1762443330608,6.74219707,156.86,156.8,6.74219707]
[1762443330911,6.74219707,156.81,156.74,0.1]
[1762443331089,0.79719387,156.8,156.74,0.1]
[1762443331295,6.74219707,156.76,156.74,0.1]
[1762443331607,6.74219707,156.75,156.74,0.1]
[1762443331785,0.66,156.79,156.74,0.1]
[1762443331989,6.74219707,156.75,156.74,0.1]
[1762443332522,0.66,156.75,156.74,0.1]
[1762443332724,7.83491941,156.8,156.74,0.1]
[1762443332891,6.74219707,156.77,156.74,0.1]
[1762443333197,6.74219707,156.75,156.74,0.1]
[1762443333400,6.74219707,156.77,156.74,0.1]
[1762443333598,6.74219707,156.78,156.74,0.1]
[1762443333795,6.74219707,156.76,156.74,0.1]
[1762443334225,7.40219707,156.75,156.74,0.1]
[1762443334711,0.66,156.75,156.74,0.1]
[1762443335314,7.03958532,156.75,156.74,0.1]
[1762443335501,13.78178239,156.75,156.74,0.1]
[1762443336104,14.57923055,156.75,156.74,0.1]
[1762443336305,13.78178239,156.75,156.74,0.1]
[1762443337317,24.36805824,156.75,156.74,1e-08]
[1762443337504,14.57923055,156.75,156.74,1e-08]
[1762443337701,24.36805824,156.75,156.74,1e-08]
[1762443337917,20.592,156.72,156.65,0.1]
[1762443338118,6.74219707,156.67,156.65,0.1]
[1762443338621,6.74219707,156.71,156.65,0.1]
[1762443338918,13.79380445,156.71,156.65,13.22572896]
[1762443339122,13.79380445,156.71,156.65,6.84219707]
[1762443339611,6.74219707,156.7,156.65,0.1]
[1762443340012,0.67,156.7,156.65,0.1]
[1762443340208,6.74219707,156.67,156.65,0.1]
[1762443340409,6.74219707,156.68,156.65,0.1]
[1762443340610,6.74219707,156.71,156.65,6.84219707]
[1762443340816,0.67,156.71,156.65,0.1]
[1762443341021,6.74219707,156.7,156.65,0.1]
[1762443341246,6.74219707,156.66,156.65,0.1]
[1762443341724,7.41219707,156.66,156.65,0.1]
[1762443342428,5.12769314,156.66,156.65,0.1]
[1762443342809,19.67094349,156.66,156.65,1e-08]
[1762443343117,9.78882769,156.65,156.47,24.13688081]
[1762443343315,9.78882769,156.65,156.52,4.45769314]
[1762443343316,4.45769314,156.58,156.52,4.45769314]
[1762443343627,30.50137622,156.66,156.57,4.45769314]
[1762443343932,5.12769314,156.65,156.59,4.45769314]
[1762443344129,7.05039941,156.73,156.64,4.45769314]
[1762443344302,7.05039941,156.73,156.66,4.45769314]
[1762443344303,11.50809255,156.73,156.66,4.45769314]
[1762443344625,4.45769314,156.71,156.65,4.45769314]
[1762443344827,4.45769314,156.71,156.66,4.45769314]
[1762443344828,6.3812137,156.71,156.66,4.45769314]
[1762443345030,6.3812137,156.71,156.65,6.3834473]
[1762443345329,6.3812137,156.71,156.66,4.45769314]
[1762443345627,5.12769314,156.7,156.61,0.67]
[1762443345927,10.58622498,156.76,156.67,4.45769314]
[1762443346134,5.12769314,156.72,156.66,4.45769314]
[1762443346424,7.46470041,156.72,156.66,6.79470041]
[1762443346622,0.67,156.72,156.63,0.67]
[1762443346825,0.67,156.75,156.69,13.17672861]
[1762443347126,0.67,156.75,156.67,15.95659949]
[1762443347127,6.79470041,156.73,156.67,13.17746707]
[1762443347310,6.79470041,156.72,156.66,6.79470041]
[1762443347511,6.79470041,156.71,156.65,6.79470041]
[1762443347741,6.79470041,156.72,156.66,6.79470041]
[1762443348531,7.46470041,156.71,156.65,6.79470041]
[1762443348904,6.38162093,156.7,156.65,6.79470041]
[1762443349105,7.46470041,156.71,156.65,6.79470041]
[1762443349330,6.79470041,156.73,156.67,6.79470041]
[1762443349531,13.84469275,156.74,156.68,6.79470041]
[1762443349706,7.04999234,156.74,156.69,6.79470041]
[1762443349915,7.04999234,156.74,156.64,0.67]
[1762443349916,6.79470041,156.77,156.67,20.592]
[1762443350105,104.7,156.76,156.71,6.79470041]
[1762443350430,6.79470041,156.75,156.69,6.79470041]
[1762443350627,6.79470041,156.75,156.7,6.79470041]
[1762443350628,111.49470041,156.75,156.7,6.79470041]
[1762443350925,104.7,156.74,156.7,13.17615128]
[1762443351111,15.94591146,156.78,156.7,13.17615128]
[1762443351112,7.04884758,156.77,156.72,6.79470041]
[1762443351315,6.79470041,156.79,156.73,6.79470041]
[1762443351514,9.78882769,156.84,156.78,6.79470041]
[1762443351515,0.79704138,156.83,156.78,6.79470041]
[1762443351715,0.67,156.83,156.74,0.997973]
[1762443351922,6.79470041,156.82,156.76,6.79470041]
[1762443352225,6.79470041,156.78,156.72,6.79470041]
[1762443352428,6.79470041,156.77,156.72,6.79470041]
[1762443352633,28.732,156.83,156.76,6.79470041]
[1762443352634,8.14,156.83,156.76,6.79470041]
[1762443352821,8.82,156.83,156.77,6.79470041]
[1762443353021,6.79470041,156.79,156.73,6.79470041]
[1762443353215,6.79470041,156.78,156.7,0.67]
[1762443353410,6.79470041,156.78,156.72,6.79470041]
[1762443353634,7.47470041,156.78,156.72,6.79470041]
[1762443353834,6.79470041,156.79,156.73,6.79470041]
[1762443354032,23.00000509,156.81,156.76,6.79470041]
[1762443354235,6.37714431,156.81,156.76,6.79470041]
[1762443354420,7.05714431,156.81,156.77,6.79470041]
[1762443354730,6.37714431,156.81,156.78,6.79470041]
[1762443355039,14.51663797,156.83,156.78,6.79470041]
[1762443355221,0.68,156.82,156.77,6.79470041]
[1762443355425,29.24807898,185.14,156.79,6.79470041]
[1762443355426,6.37594563,156.84,156.79,6.79470041]
[1762443355633,7.05559208,156.85,156.8,6.79470041]
[1762443356021,6.79470041,156.83,156.74,6.37989569]
[1762443356263,7.47470041,156.84,156.78,6.79470041]
[1762443356544,6.79470041,156.83,156.77,6.79470041]
[1762443356843,7.47470041,156.84,156.78,6.79470041]
[1762443357013,6.79470041,156.83,156.77,6.79470041]
[1762443357217,6.79470041,156.83,156.75,6.79470041]
[1762443357218,6.79470041,156.81,156.75,6.79470041]
[1762443357426,6.79470041,156.81,156.72,6.38047313]
[1762443357427,29.11328222,156.82,156.76,6.79470041]
[1762443357617,6.79470041,156.81,156.75,6.79470041]
[1762443357817,6.79470041,156.8,156.74,6.79470041]
[1762443358125,6.79470041,156.79,156.73,6.79470041]
[1762443358622,6.79470041,156.78,156.72,6.79470041]
[1762443359147,8.78,156.83,156.76,6.79470041]
[1762443359346,6.37673766,156.82,156.77,6.79470041]
[1762443359525,13.17143807,156.82,156.76,6.79470041]
[1762443359725,6.37673766,156.82,156.77,6.79470041]
[1762443360044,0.68,156.86,156.8,6.79470041]
[1762443360244,6.37434241,156.88,156.83,6.79470041]
[1762443360444,6.37434241,156.88,156.77,28.692]
[1762443360445,6.79470041,156.84,156.77,6.79470041]
[1762443360625,6.79470041,156.83,156.77,6.79470041]
[1762443361044,0.68,156.84,156.78,6.79470041]
[1762443361228,0.68,156.87,156.82,6.79470041]
[1762443361544,6.79470041,156.83,156.76,0.32752442]
[1762443361745,6.79470041,156.83,156.77,6.79470041]
[1762443362052,7.47470041,156.83,156.74,21.59005521]
[1762443362230,6.79470041,156.81,156.72,20.592]
[1762443362434,20.592,156.87,156.7,6.79470041]
[1762443362435,6.79470041,156.76,156.7,6.79470041]
[1762443362635,6.79470041,156.77,156.71,6.79470041]
[1762443362946,20.592,156.86,156.74,6.79470041]
[1762443362947,0.68,156.82,156.74,6.79470041]
[1762443363136,6.79470041,156.76,156.7,6.79470041]
[1762443363333,6.79470041,156.71,156.63,0.67]
[1762443363541,0.79739729,156.76,156.6,7.46470041]
[1762443363542,28.712,156.73,156.6,7.46470041]
[1762443363846,0.79760081,156.72,156.61,6.79470041]
[1762443364051,1.47760081,156.72,156.61,6.79470041]
[1762443364359,1.47760081,156.72,156.62,6.79470041]
[1762443364360,6.79470041,156.68,156.62,6.79470041]
[1762443364542,6.79470041,156.67,156.61,6.79470041]
[1762443364844,6.79470041,156.69,156.63,6.79470041]
[1762443365044,6.79470041,156.66,156.57,6.38680724]
[1762443365242,6.79470041,156.67,156.61,6.79470041]
[1762443365448,0.68,156.7,156.65,6.79470041]
[1762443365633,13.17591637,156.71,156.65,6.79470041]
[1762443365831,13.17591637,156.71,156.62,0.67]
[1762443365832,23.01425022,156.71,156.62,0.67]
[1762443366038,0.68,156.7,156.64,6.79470041]
[1762443366239,6.79470041,156.65,156.59,6.79470041]
[1762443366438,0.68,156.7,156.61,6.79470041]
[1762443366439,6.79470041,156.68,156.61,6.79470041]
[1762443366624,6.79470041,156.62,156.54,0.67]
[1762443366829,6.79470041,156.57,156.51,7.46470041]
[1762443367137,13.18139024,156.58,156.52,13.18343502]
[1762443367322,0.68,156.66,156.57,6.79470041]
[1762443367323,0.68,156.64,156.57,6.79470041]
[1762443367526,6.79470041,156.65,156.55,20.592]
[1762443367746,0.79770261,156.7,156.58,27.38670041]
[1762443367947,0.79770261,156.7,156.56,0.67]
[1762443367948,6.79470041,156.63,156.57,6.79470041]
[1762443368150,6.79470041,156.63,156.55,20.592]
[1762443368348,4.45989931,156.61,156.53,21.262]
[1762443368555,4.45989931,156.59,156.53,4.45989931]
[1762443369122,6.38691958,156.57,156.52,4.45989931]
[1762443369329,4.45989931,156.55,156.49,4.55989931]
[1762443369629,0.68,156.56,156.49,0.1]
[1762443369630,4.45989931,156.53,156.49,0.1]
[1762443369936,4.45989931,156.51,156.49,0.1]
[1762443370338,5.13989931,156.5,156.49,0.1]
[1762443370653,4.45989931,156.52,156.49,0.1]
[1762443370829,4.45989931,156.51,156.49,0.1]
[1762443371336,11.52967566,156.5,156.49,1e-08]
[1762443372454,13.88626078,156.5,156.49,1e-08]
[1762443372631,15.97283904,156.52,156.49,1e-08]
[1762443372632,0.68,156.52,156.49,1e-08]
[1762443372965,0.68,156.59,156.51,6.81648443]
[1762443373253,0.68,156.59,156.55,6.81648443]
[1762443373431,0.68,156.63,156.57,6.81648443]
[1762443373824,0.68,156.63,156.58,6.81648443]
[1762443374030,6.38407558,156.64,156.59,6.81648443]
[1762443374240,6.38364655,156.66,156.55,0.67]
[1762443374538,7.74180577,156.58,156.52,8.41180577]
[1762443374733,7.74180577,156.56,156.5,7.74180577]
[1762443375239,0.68,156.58,156.5,7.74180577]
[1762443375437,7.74180577,156.58,156.52,7.74180577]
[1762443375769,6.38528829,156.61,156.55,7.74180577]
[1762443376083,14.80666601,156.63,156.57,7.74180577]
[1762443376440,16.63742118,156.67,156.6,7.74180577]
[1762443376667,14.12505612,156.66,156.6,7.74180577]
[1762443376855,14.80469731,156.67,156.61,7.74180577]
[1762443377062,14.80469731,156.67,156.57,0.99978681]
[1762443377238,0.68,156.7,156.62,7.74180577]
[1762443377444,7.74180577,156.68,156.62,7.74180577]
[1762443377647,7.74180577,156.69,156.63,7.74180577]
[1762443377846,14.1234267,156.7,156.62,0.67]
[1762443378155,14.1234267,156.7,156.64,7.74180577]
[1762443378550,7.74180577,156.67,156.61,7.74180577]
[1762443378781,8.42180577,156.69,156.63,7.74180577]
[1762443378948,8.42180577,156.69,156.64,7.74180577]
[1762443378949,0.68,156.69,156.64,7.74180577]
[1762443379154,6.38284291,156.67,156.61,7.74180577]
[1762443379359,0.68,156.68,156.59,0.67]
[1762443379561,0.79754992,156.73,156.59,0.67]
[1762443379562,0.68,156.71,156.64,7.74180577]
[1762443379766,7.74180577,156.74,156.68,7.74180577]
[1762443380068,7.74180577,156.7,156.61,0.67]
[1762443380378,7.74180577,156.69,156.61,21.262]
[1762443380555,7.74180577,156.69,156.5,50.0]
[1762443380556,7.74180577,156.65,156.57,0.67]
[1762443380748,7.74180577,156.64,156.58,7.74180577]
[1762443380949,0.79765171,156.71,156.57,0.67]
[1762443380950,7.74180577,156.65,156.59,7.74180577]
[1762443381144,7.74180577,156.64,156.58,7.74180577]
[1762443381348,6.38407086,156.64,156.59,7.74180577]
[1762443381555,7.74180577,156.67,156.61,7.74180577]
[1762443381756,7.74180577,156.65,156.59,7.74180577]
[1762443381973,7.74180577,156.64,156.59,7.74180577]
[1762443382274,0.68,156.66,156.61,7.74180577]
[1762443382659,6.38284291,156.67,156.62,7.74180577]
[1762443383069,14.1241771,156.69,156.63,7.74180577]
[1762443383570,6.38237133,156.69,156.62,0.67]
[1762443383876,14.1241771,156.69,156.63,7.74180577]
[1762443384065,8.45180577,156.68,156.62,7.74180577]
[1762443384263,7.74180577,156.65,156.6,7.74180577]
[1762443384468,7.74180577,156.63,156.53,0.32980622]
[1762443384665,0.71,156.68,156.59,7.74180577]
[1762443384968,7.74180577,156.63,156.55,0.32974637]
[1762443385170,0.71,156.67,156.55,7.74180577]
[1762443385171,8.14,156.66,156.55,7.74180577]
[1762443385365,30.79460818,156.65,156.58,7.74180577]
[1762443385575,50.0,156.76,156.56,0.67]
[1762443385576,7.74180577,156.67,156.61,7.74180577]
[1762443385775,8.45180577,156.69,156.63,7.74180577]
[1762443385972,7.74180577,156.68,156.61,0.67]
[1762443386295,7.74180577,156.67,156.61,7.74180577]
[1762443386490,7.74180577,156.67,156.55,0.67]
[1762443386491,7.74180577,156.62,156.55,0.67]
[1762443386698,7.74180577,156.61,156.52,6.38888527]
[1762443386970,0.71,156.64,156.58,7.74180577]
[1762443387150,8.45180577,156.64,156.58,7.74180577]
[1762443387351,7.74180577,156.61,156.55,7.74180577]
[1762443387550,7.74180577,156.6,156.55,7.74180577]
[1762443387760,23.05565536,156.63,156.52,27.31128876]
[1762443387761,7.74180577,156.58,156.52,7.74180577]
[1762443387951,0.71,156.61,156.53,7.74180577]
[1762443388158,7.74180577,156.55,156.49,7.74180578]
[1762443388369,7.74180577,156.56,156.5,7.74180577]
[1762443388681,7.74180577,156.58,156.52,7.74180577]
[1762443388884,0.71,156.6,156.53,7.74180577]
[1762443389063,0.71,156.6,156.55,7.74180577]
[1762443389263,22.35136342,156.59,156.55,7.74180577]
[1762443389466,7.74180577,156.58,156.52,7.74180577]
[1762443389686,7.74180577,156.57,156.49,20.59200001]
[1762443389886,0.71,156.57,156.51,7.74180577]
[1762443390053,8.45180577,156.56,156.49,1e-08]
[1762443390261,7.74180577,156.53,156.49,1e-08]
[1762443390659,0.71,156.53,156.48,7.74180577]
[1762443390872,8.45180577,156.53,156.47,7.74180577]
[1762443391282,0.71,156.53,156.48,7.74180577]
[1762443391487,7.74180577,156.54,156.48,7.74180577]
[1762443391787,0.71,156.55,156.47,0.67]
[1762443392584,8.45180577,156.55,156.5,7.74180577]
[1762443392781,8.45180577,156.55,156.45,0.33111343]
[1762443392962,6.38691958,156.57,156.48,9.78882769]
[1762443393159,0.71,156.58,156.49,0.33076304]
[1762443393363,0.71,156.62,156.57,7.74180577]
[1762443393581,0.71,156.62,156.53,1.00011214]
[1762443393887,8.45180577,156.62,156.56,7.74180577]
[1762443394195,8.45180577,156.65,156.59,7.74180577]
[1762443394489,7.09246928,156.68,156.63,7.0045005]
[1762443394678,7.09246928,156.68,156.57,10.11837015]
[1762443394869,6.38246928,156.68,156.63,7.0045005]
[1762443395091,14.09696978,156.68,156.62,7.0045005]
[1762443395262,29.34305862,156.68,156.59,0.32958289]
[1762443395464,29.34305862,156.68,156.55,8.14]
[1762443395465,7.0045005,156.63,156.55,8.14]
[1762443395685,0.71,156.67,156.53,7.0045005]
[1762443395686,7.0045005,156.59,156.53,7.0045005]
[1762443395986,7.0045005,156.63,156.57,7.0045005]
[1762443396197,7.0045005,156.59,156.5,0.67]
[1762443396400,7.0045005,156.57,156.48,0.33043755]
[1762443396608,0.71,156.62,156.56,7.0045005]
[1762443396771,0.71,156.62,156.52,0.33017369]
[1762443396966,0.71,156.62,156.52,1.05017369]
[1762443397382,0.71,156.62,156.53,0.72]
[1762443397665,7.7145005,156.63,156.57,7.0045005]
[1762443397868,7.0045005,156.62,156.56,7.0045005]
[1762443398066,0.71,156.62,156.53,0.72]
[1762443398381,0.71,156.62,156.57,7.0045005]
[1762443398884,7.7145005,156.62,156.57,7.0045005]
[1762443399198,7.0045005,156.59,156.5,26.98162504]
[1762443399379,7.0045005,156.59,156.53,7.0045005]
[1762443399380,6.38651168,156.58,156.53,7.0045005]
[1762443399688,6.3861828,156.59,156.55,7.0045005]
[1762443399996,7.0961828,156.59,156.5,20.92256245]
[1762443400195,7.0961828,156.59,156.54,7.0045005]
[1762443400395,6.3861828,156.59,156.55,7.0045005]
[1762443400701,7.09412248,156.64,156.58,7.0045005]
[1762443400992,22.9627613,156.66,156.6,7.0045005]
[1762443401199,7.09365783,156.65,156.56,1.05025112]
[1762443401372,7.0045005,156.57,156.41,1.52144891]
[1762443401572,7.0045005,156.52,156.46,7.0045005]
[1762443401873,1.50841594,156.56,156.42,7.7245005]
[1762443402172,0.71,156.56,156.42,7.7245005]
[1762443402385,7.0045005,156.52,156.46,7.0045005]
[1762443402693,7.0045005,156.54,156.48,7.0045005]
[1762443402892,7.0045005,156.54,156.5,7.0045005]
[1762443402893,6.3881436,156.54,156.5,7.0045005]
[1762443403195,0.71,156.59,156.53,7.0045005]
[1762443403495,0.71,156.59,156.55,7.0045005]
[1762443403805,0.71,156.59,156.51,0.72]
[1762443403806,0.71,156.59,156.56,7.0045005]
[1762443403965,0.71,156.59,156.55,7.0045005]
[1762443404168,6.3848806,156.62,156.56,7.0045005]
[1762443404365,6.3844914,156.63,156.52,9.78882769]
[1762443404571,7.7145005,156.61,156.55,7.0045005]
[1762443405087,0.71,156.63,156.58,7.0045005]
[1762443405292,0.71,156.62,156.58,7.0045005]
[1762443405480,0.71,156.62,156.52,22.36135956]
[1762443405684,7.0045005,156.61,156.55,7.0045005]
[1762443405886,7.0045005,156.61,156.52,6.38895987]
[1762443406190,7.7145005,156.6,156.45,8.16]
[1762443406392,7.0045005,156.56,156.5,7.0045005]
[1762443406588,0.71,156.57,156.53,7.0045005]
[1762443407098,0.71,156.57,156.54,7.0045005]
[1762443407297,0.71,156.57,156.48,0.28]
[1762443407298,0.71,156.57,156.49,6.39018467]
[1762443407595,0.71,156.57,156.53,7.0045005]
[1762443407897,0.71,156.57,156.48,30.66082769]
[1762443408105,44.71292162,156.64,156.56,7.0045005]
[1762443408305,7.0045005,156.61,156.49,0.28]
[1762443408598,0.71,156.63,156.55,7.0045005]
[1762443408777,7.0045005,156.61,156.55,7.0045005]
[1762443409098,6.38569604,156.6,156.55,7.0045005]
[1762443409295,6.38569604,156.6,156.56,7.0045005]
[1762443409474,7.09569604,156.6,156.56,7.0045005]
[1762443409678,6.38569604,156.6,156.56,7.0045005]
[1762443409876,6.38569604,156.6,156.57,7.0045005]
[1762443410075,7.09569604,156.6,156.56,7.0045005]
[1762443410372,23.05993614,156.6,156.55,7.0045005]
[1762443410572,0.71,156.59,156.55,7.0045005]
[1762443410889,0.71,156.6,156.57,7.0045005]
[1762443411087,7.09590359,156.6,156.57,7.0045005]
[1762443411381,7.09590359,156.6,156.56,7.0045005]
[1762443411590,0.71,156.59,156.51,20.592]